bitfinex-derivatives/quotes_SOLF0:USTF0_20241206
["timestamp","ask_amount","ask_price","bid_price","bid_amount"]
[1733443703382,27.10428327,235.55,235.4,2.536]
[1733443704188,27.10428327,235.55,235.53,2.1202]
[1733443704482,27.10428327,235.62,235.4,2.536]
[1733443705187,27.10428327,235.62,235.57,2.1198]
[1733443705386,27.10428327,235.62,235.47,4.16]
[1733443706883,27.10428327,235.62,235.58,2.1197]
[1733443707382,27.10428327,235.62,235.51,2.1203]
[1733443707589,27.10428327,235.62,235.47,4.16]
[1733443708178,27.10428327,235.62,235.59,2.1196]
[1733443708785,27.10428327,235.62,235.6,2.1195]
[1733443708987,0.4803,235.65,235.47,4.16]
[1733443709188,2.5333,235.67,235.48,2.5229]
[1733443709388,2.5528,235.7,235.48,5.1455]
[1733443709583,2.5528,235.7,235.52,27.10428327]
[1733443709785,2.5528,235.7,235.53,2.5162]
[1733443710283,27.10428327,235.68,235.53,2.5162]
[1733443710684,27.10428327,235.68,235.64,2.1192]
[1733443711787,27.10428327,235.68,235.67,2.1189]
[1733443711993,2.5528,235.7,235.56,4.16]
[1733443712385,16.59372108,235.72,235.56,4.16]
[1733443712585,16.59372108,235.68,235.56,4.16]
[1733443713696,16.59372108,235.72,235.56,4.16]
[1733443714395,16.59372108,235.72,235.67,2.1188]
[1733443714692,16.59372108,235.72,235.56,4.16]
[1733443714888,16.59372108,235.72,235.68,2.1188]
[1733443715295,16.59372108,235.72,235.56,4.16]
[1733443715591,16.59372108,235.68,235.56,4.16]
[1733443716095,16.59372108,235.64,235.53,2.5162]
[1733443716497,16.59372108,235.64,235.62,2.1194]
[1733443716697,16.59372108,235.64,235.53,2.5162]
[1733443717188,16.59372108,235.64,235.63,2.1193]
[1733443717893,16.59372108,235.67,235.53,2.5162]
[1733443719898,16.59372108,235.67,235.66,2.1191]
[1733443720195,16.59372108,235.71,235.54,4.2403]
[1733443720699,16.59372108,235.71,235.7,2.1187]
[1733443721902,16.59372108,235.75,235.73,2.1185]
[1733443722093,16.59372108,235.75,235.59,4.16]
[1733443722495,16.59372108,235.75,235.7,2.1187]
[1733443722700,16.59372108,235.75,235.59,4.16]
[1733443722891,16.59372108,235.75,235.7,2.1187]
[1733443723097,16.59372108,235.75,235.59,4.16]
[1733443724893,2.4725,235.76,235.59,20.75372108]
[1733443725097,19.13382108,235.79,235.76,2.1182]
[1733443725303,19.13382108,235.79,235.68,2.09565818]
[1733443725602,16.59372108,235.79,235.59,20.75372108]
[1733443725800,16.59372108,235.79,235.63,4.2387]
[1733443726095,16.59372108,235.79,235.68,2.1189]
[1733443726294,16.59372108,235.79,235.66,2.08717459]
[1733443726498,16.59372108,235.79,235.64,2.6117]
[1733443726695,16.59372108,235.79,235.64,4.74235297]
[1733443727607,16.59372108,235.75,235.64,4.74235297]
[1733443728507,16.59372108,235.75,235.72,2.1186]
[1733443728699,16.59372108,235.75,235.64,4.74235297]
[1733443729003,16.59372108,235.75,235.72,2.1185]
[1733443729198,16.59372108,235.75,235.58,2.6891]
[1733443729403,16.59372108,235.71,235.58,2.6891]
[1733443730301,16.59372108,235.71,235.65,2.1191]
[1733443730497,16.59372108,235.71,235.55,4.14]
[1733443730698,16.59372108,235.63,235.49,5.78898]
[1733443730902,16.59372108,235.59,235.49,0.58808]
[1733443731099,16.59372108,235.55,235.51,2.1204]
[1733443731305,16.59372108,235.55,235.39,96.36404265]
[1733443731306,16.59372108,235.55,235.38,5.87540194]
[1733443731605,16.59372108,235.49,235.41,2.1213]
[1733443732006,16.59372108,235.49,235.32,2.4706]
[1733443732007,16.59372108,235.45,235.32,5.87540194]
[1733443732305,16.59372108,235.41,235.28,4.14]
[1733443732804,16.59372108,235.41,235.29,2.17340712]
[1733443733006,16.59372108,235.41,235.24,16.59372108]
[1733443733007,16.59372108,235.41,235.21,5.87540194]
[1733443733206,16.59372108,235.41,235.2,75.42393896]
[1733443733207,16.59372108,235.33,235.2,41.20379021]
[1733443733405,16.59372108,235.33,235.25,2.1227]
[1733443733598,16.59372108,235.33,235.2,41.20379021]
[1733443734006,16.59372108,235.33,235.23,2.1229]
[1733443734202,16.59372108,235.33,235.16,2.5664]
[1733443734705,16.59372108,235.33,235.21,2.1232]
[1733443734903,16.59372108,235.29,235.14,2.10574005]
[1733443735109,16.59372108,235.29,235.12,2.6471]
[1733443735306,16.59372108,235.29,235.2,2.1232]
[1733443736109,27.0700112,235.27,235.18,2.1234]
[1733443736805,27.0700112,235.27,235.12,4.80456579]
[1733443736806,27.0700112,235.27,235.19,2.1233]
[1733443736999,27.0700112,235.27,235.12,4.80456579]
[1733443737611,27.0700112,235.27,235.12,2.6471]
[1733443737909,27.0700112,235.23,235.09,2.13020663]
[1733443738107,27.0700112,235.23,235.06,2.5664]
[1733443738108,27.0700112,235.23,235.11,2.1241]
[1733443738304,27.0700112,235.23,235.07,4.14]
[1733443739312,27.0700112,235.23,235.07,6.30420834]
[1733443739511,27.0700112,235.23,235.17,2.1235]
[1733443740010,27.0700112,235.23,235.14,2.1238]
[1733443740203,27.0700112,235.23,235.07,6.30420834]
[1733443740616,27.0700112,235.23,235.07,2.16420834]
[1733443740906,27.0700112,235.23,235.05,2.4936]
[1733443741108,27.0700112,235.23,235.15,2.1237]
[1733443741707,27.0700112,235.23,235.05,4.61175142]
[1733443741911,4.14,235.26,235.06,27.0700112]
[1733443742611,27.0700112,235.23,235.05,4.61175142]
[1733443742910,27.0700112,235.19,235.05,4.61175142]
[1733443743107,27.0700112,235.15,235.0,30.0]
[1733443743611,2.6458,235.14,235.0,30.0]
[1733443744410,2.6458,235.14,235.0,32.15389508]
[1733443744610,27.0700112,235.44,235.03,27.0700112]
[1733443744611,27.0700112,235.24,235.03,27.0700112]
[1733443744813,27.0700112,235.28,235.13,2.1239]
[1733443745111,27.0700112,235.2,235.04,9.3671]
[1733443745411,27.0700112,235.16,235.09,2.1242]
[1733443746014,27.0700112,235.16,235.04,4.14]
[1733443746213,27.0700112,235.16,235.0,30.0]
[1733443746612,27.0700112,235.12,235.0,30.0]
[1733443746813,4.14,235.11,235.0,30.0]
[1733443747015,4.14,235.11,235.03,2.1248]
[1733443747309,4.14,235.11,235.0,30.0]
[1733443747614,4.14,235.11,235.09,2.1242]
[1733443747811,5.3292,235.15,235.09,2.1242]
[1733443748008,27.0700112,235.16,235.01,2.12770812]
[1733443748212,27.0700112,235.2,235.0,30.0]
[1733443748413,27.0700112,235.2,235.0,59.18304548]
[1733443748606,29.17007294,235.2,235.0,32.6819]
[1733443748808,27.0700112,235.16,235.0,32.6819]
[1733443749013,27.0700112,235.12,235.0,30.0]
[1733443749812,27.0700112,235.08,235.0,30.0]
[1733443750611,4.14,235.13,235.0,24.6515]
[1733443750612,27.0700112,235.04,235.0,24.6515]
[1733443750817,4.14,235.03,235.0,24.0204]
[1733443753615,4.14,235.03,235.01,2.125]
[1733443754115,27.0700112,235.02,235.0,24.0204]
[1733443754719,4.14,235.03,235.02,2.1249]
[1733443755020,4.14,235.08,235.0,24.0204]
[1733443755224,27.0700112,235.14,235.0,24.0204]
[1733443755517,27.0700112,235.18,235.0,24.0204]
[1733443755719,27.0700112,235.18,235.01,2.5541]
[1733443755914,27.0700112,235.13,235.01,2.5541]
[1733443756220,4.14,235.2,235.01,2.5541]
[1733443756221,20.81412374,235.2,235.01,2.5541]
[1733443756519,20.81412374,235.2,235.02,2.7292]
[1733443756724,16.67412374,235.24,235.19,2.1233]
[1733443756916,16.67412374,235.28,235.07,20.79412374]
[1733443757114,16.67412374,235.28,235.16,2.1236]
[1733443757620,16.67412374,235.24,235.08,2.6938]
[1733443757815,16.67412374,235.16,235.02,2.7292]
[1733443758020,27.10635879,235.11,234.97,2.7352]
[1733443758213,290.0,235.29,234.98,27.10635879]
[1733443758520,27.10635879,235.21,235.02,27.10635879]
[1733443758719,27.10635879,235.21,235.03,2.7292]
[1733443758919,27.10635879,235.21,235.04,2.5768]
[1733443759516,27.10635879,235.17,234.98,27.10635879]
[1733443759722,27.10635879,235.13,234.97,5.3069]
[1733443760227,4.12,235.16,234.97,5.3069]
[1733443760421,4.12,235.16,234.98,2.5254]
[1733443760621,4.12,235.16,235.0,28.1404]
[1733443760922,27.10635879,235.13,235.0,24.0204]
[1733443761114,4.12,235.16,235.0,24.0204]
[1733443761115,27.10635879,235.09,235.0,24.0204]
[1733443761523,27.10635879,235.05,235.0,24.0204]
[1733443762118,4.12,235.08,235.0,24.0204]
[1733443762527,4.12,235.08,235.02,2.1249]
[1733443763020,4.12,235.08,235.04,2.1246]
[1733443763221,27.10635879,235.13,235.0,24.0204]
[1733443763424,4.12,235.14,235.0,24.0204]
[1733443763615,4.12,235.14,235.0,26.6168]
[1733443763821,4.12,235.14,235.0,29.1675]
[1733443764219,2.07514407,235.19,235.0,31.28943424]
[1733443764423,2.07514407,235.19,235.02,27.10635879]
[1733443764618,4.12,235.2,235.12,2.1239]
[1733443764826,4.12,235.2,235.01,2.5748]
[1733443765219,4.12,235.2,235.06,2.1245]
[1733443765424,4.12,235.2,235.01,2.5748]
[1733443766438,27.10635879,235.25,235.05,27.10635879]
[1733443766819,290.0,235.38,235.05,27.10635879]
[1733443766820,4.12,235.4,235.17,27.10635879]
[1733443767022,27.10635879,235.36,235.18,7.6364]
[1733443767223,27.10635879,235.36,235.19,2.12582979]
[1733443767425,27.10635879,235.36,235.23,2.1229]
[1733443767627,27.10635879,235.36,235.2,2.0879938]
[1733443767828,27.10635879,235.36,235.18,7.6364]
[1733443768128,27.10635879,235.32,235.18,7.6364]
[1733443768325,27.10635879,235.28,235.18,5.1348]
[1733443768525,29.26619845,235.28,235.13,2.16217784]
[1733443768726,29.26619845,235.28,235.1,6.654]
[1733443768927,27.10635879,235.28,235.16,2.1236]
[1733443769124,27.10635879,235.24,235.1,6.654]
[1733443770022,27.10635879,235.24,235.14,2.1238]
[1733443770222,27.10635879,235.24,235.1,6.654]
[1733443770425,27.10635879,235.2,235.05,5.86524439]
[1733443770625,27.10635879,235.2,235.04,22.64733317]
[1733443770626,27.10635879,235.2,235.04,5.0516]
[1733443770923,31.22635879,235.25,235.05,5.31446195]
[1733443771127,4.12,235.27,235.07,5.86524439]
[1733443771326,27.10635879,235.29,235.07,23.46097756]
[1733443771527,27.10635879,235.29,235.08,50.03895348]
[1733443771722,27.10635879,235.25,235.14,2.1238]
[1733443771923,27.10635879,235.25,235.05,5.86524439]
[1733443772128,27.10635879,235.25,235.04,22.64733317]
[1733443772129,27.10635879,235.21,235.04,5.0516]
[1733443772327,31.22635879,235.21,235.04,5.0516]
[1733443772721,31.22635879,235.21,235.1,2.1241]
[1733443773329,31.22635879,235.21,235.11,2.1241]
[1733443773729,31.22635879,235.21,235.04,5.0516]
[1733443773935,31.22635879,235.21,235.11,2.1241]
[1733443774123,27.10635879,235.17,235.04,5.0516]
[1733443774324,27.10635879,235.17,235.11,2.124]
[1733443774528,27.10635879,235.17,235.04,5.0516]
[1733443774725,31.22635879,235.21,235.04,5.0516]
[1733443775028,27.10635879,235.25,235.06,27.10635879]
[1733443775331,4.12,235.27,235.07,50.05662124]
[1733443775531,4.12,235.27,235.06,50.56733635]
[1733443775728,4.12,235.27,235.1,27.10635879]
[1733443776028,4.12,235.27,235.11,4.12]
[1733443776732,4.12,235.27,235.11,6.20995319]
[1733443776932,4.12,235.27,235.11,29.67093075]
[1733443777128,27.10635879,235.25,235.17,2.1235]
[1733443777429,27.10635879,235.25,235.11,9.98524439]
[1733443777625,27.10635879,235.25,235.11,12.10027277]
[1733443777830,4.12,235.27,235.12,11.18001083]
[1733443778031,4.12,235.27,235.13,2.6386]
[1733443778231,4.12,235.27,235.2,2.1233]
[1733443778432,4.12,235.27,235.13,2.6386]
[1733443778631,16.65333569,235.31,235.13,8.50384439]
[1733443778832,16.65333569,235.31,235.13,2.6386]
[1733443779127,4.12,235.33,235.14,5.31086915]
[1733443779332,16.65333569,235.35,235.2,2.1232]
[1733443779533,16.65333569,235.35,235.19,4.12]
[1733443779827,16.65333569,235.27,235.2,2.1233]
[1733443780027,16.65333569,235.23,235.13,2.6386]
[1733443780224,16.65333569,235.23,235.1,5.86524439]
[1733443780422,16.65333569,235.23,235.07,5.86524439]
[1733443780631,16.65333569,235.19,235.06,2.5987]
[1733443780829,16.65333569,235.15,235.04,5.0516]
[1733443781136,16.65333569,235.11,235.04,2.47]
[1733443781438,16.65333569,235.11,235.0,24.0204]
[1733443781635,16.65333569,235.11,235.02,2.1249]
[1733443781837,16.65333569,235.11,235.0,24.0204]
[1733443782027,27.11047431,235.09,235.0,24.0204]
[1733443782835,27.11047431,235.05,235.0,24.0204]
[1733443783133,27.11047431,235.01,235.0,24.0204]
[1733443783336,4.12,235.02,235.0,24.0204]
[1733443783536,4.12,235.03,235.0,24.0204]
[1733443784238,27.11047431,235.09,235.03,2.1248]
[1733443784438,4.12,235.08,235.0,24.0204]
[1733443785133,27.11047431,235.01,235.0,24.0204]
[1733443785541,27.11047431,235.05,235.0,24.0204]
[1733443785732,27.11047431,235.05,235.01,2.125]
[1733443786539,27.11047431,235.05,235.0,24.0204]
[1733443787336,4.12,235.08,235.0,24.0204]
[1733443787735,4.12,235.08,235.02,2.1249]
[1733443787936,27.11047431,235.06,235.0,24.0204]
[1733443788138,27.11047431,235.01,235.0,24.0204]
[1733443789835,2.16608766,235.12,235.0,24.0204]
[1733443790138,2.1243,235.1,235.0,26.1456]
[1733443790335,4.1,235.12,235.0,24.0204]
[1733443790336,27.11047431,235.07,235.0,24.0204]
[1733443790537,29.20348994,235.07,235.0,24.0204]
[1733443790740,7.5815642,235.06,235.0,24.0204]
[1733443790942,7.5815642,235.05,235.0,24.0204]
[1733443791240,11.6815004,235.04,235.0,26.1455]
[1733443791435,27.11047431,235.03,235.0,24.0204]
[1733443793239,27.11047431,235.03,235.0,26.1455]
[1733443793636,4.21761563,235.07,235.0,24.0204]
[1733443793637,4.1,235.05,235.0,24.0204]
[1733443793843,4.1,235.05,235.03,2.1248]
[1733443794339,27.11047431,235.11,235.0,24.0204]
[1733443794542,7.57974517,235.1,235.0,24.0204]
[1733443794843,7.57974517,235.09,235.0,24.0204]
[1733443795039,4.1,235.12,235.0,24.0204]
[1733443795040,4.1,235.12,235.1,2.1243]
[1733443795245,4.1,235.12,235.0,24.0204]
[1733443795246,7.58005267,235.11,235.01,5.2544]
[1733443795537,4.1,235.12,235.01,5.2544]
[1733443795742,27.11047431,235.15,235.01,7.8163]
[1733443795943,7.58032458,235.14,235.01,7.8163]
[1733443796141,7.58032458,235.13,235.01,7.8163]
[1733443796340,27.11047431,235.15,235.01,7.8163]
[1733443796640,27.11047431,235.11,235.0,24.0204]
[1733443796845,27.11047431,235.07,235.0,24.0204]
[1733443797436,31.21047431,235.07,235.0,24.0204]
[1733443797642,27.11047431,235.03,235.0,24.0204]
[1733443798145,31.21047431,235.07,235.0,24.0204]
[1733443798345,7.57446145,235.06,235.0,24.0204]
[1733443798544,7.57446145,235.05,235.0,24.0204]
[1733443798841,31.21047431,235.07,235.0,24.0204]
[1733443799039,7.56729399,235.06,235.0,24.0204]
[1733443799239,7.56729399,235.05,235.0,24.0204]
[1733443799543,31.21047431,235.07,235.0,24.0204]
[1733443799845,7.56597045,235.06,235.0,24.0204]
[1733443800142,7.56597045,235.05,235.0,24.0204]
[1733443800340,31.21047431,235.07,235.0,24.0204]
[1733443800536,7.56363387,235.06,235.0,24.0204]
[1733443800842,27.11047431,235.03,235.0,24.0204]
[1733443801036,29.19997667,235.03,235.0,24.0204]
[1733443801235,27.11047431,235.03,235.0,24.0204]
[1733443801643,4.1,235.07,235.0,24.0204]
[1733443801844,7.56244863,235.06,235.0,24.0204]
[1733443802146,4.1,235.07,235.04,2.1248]
[1733443802544,27.11047431,235.12,235.0,24.0204]
[1733443802744,7.56612969,235.11,235.0,24.0204]
[1733443802946,27.11047431,235.12,235.0,24.0204]
[1733443803644,27.11047431,235.08,235.0,24.0204]
[1733443803949,2.1244,235.08,235.0,24.0204]
[1733443804150,16.68371927,235.09,235.0,24.0204]
[1733443804648,20.78371927,235.13,235.0,24.0204]
[1733443804851,18.80731927,235.17,235.0,24.0204]
[1733443805050,7.56639875,235.16,235.0,26.1169881]
[1733443805245,16.68371927,235.21,235.0,42.80070737]
[1733443805445,17.94577433,235.2,235.0,42.80070737]
[1733443805653,7.56783023,235.19,235.0,42.80070737]
[1733443805946,16.68371927,235.17,235.0,24.0204]
[1733443806152,16.68371927,235.17,235.01,2.16349652]
[1733443806655,16.68371927,235.17,235.0,24.0204]
[1733443806953,16.68371927,235.17,235.01,2.16030678]
[1733443807153,16.68371927,235.17,235.0,24.0204]
[1733443807154,16.68371927,235.17,235.05,2.1247]
[1733443807348,16.68371927,235.17,235.0,24.0204]
[1733443807649,16.68371927,235.21,235.0,24.0204]
[1733443807850,7.56646897,235.2,235.04,16.68371927]
[1733443808048,4.1,235.23,235.05,12.0865]
[1733443808251,16.68371927,235.21,235.05,12.0865]
[1733443808548,4.1,235.23,235.05,12.0865]
[1733443808944,16.68371927,235.25,235.05,12.0865]
[1733443809250,18.80661927,235.25,235.14,2.1239]
[1733443809555,16.68371927,235.21,235.05,12.0865]
[1733443809950,16.68371927,235.17,235.05,7.9865]
[1733443810253,4.1,235.16,235.05,7.9865]
[1733443810450,2.1242,235.12,235.05,7.9865]
[1733443810654,16.68371927,235.13,235.05,7.9865]
[1733443811054,4.1,235.16,235.05,7.9865]
[1733443811253,16.68371927,235.17,235.05,7.9865]
[1733443811454,16.68371927,235.21,235.05,7.9865]
[1733443811661,17.90305656,235.2,235.05,7.9865]
[1733443811857,7.54995378,235.2,235.05,7.9865]
[1733443812057,16.68371927,235.21,235.05,7.9865]
[1733443812458,16.68371927,235.21,235.06,4.1]
[1733443812661,16.68371927,235.21,235.13,2.124]
[1733443812854,16.68371927,235.21,235.06,4.1]
[1733443813960,16.68371927,235.17,235.05,7.9865]
[1733443815359,16.68371927,235.17,235.07,2.1244]
[1733443815554,16.68371927,235.17,235.05,7.9865]
[1733443815861,16.68371927,235.17,235.1,2.1242]
[1733443816164,16.68371927,235.17,235.05,7.9865]
[1733443816666,290.0,235.3,235.05,7.9865]
[1733443816667,16.68371927,235.13,235.05,5.2994]
[1733443816961,2.1243,235.11,235.0,24.0204]
[1733443817161,16.68371927,235.09,235.0,24.0204]
[1733443817562,16.68371927,235.09,235.01,2.1251]
[1733443818169,16.68371927,235.09,235.0,24.0204]
[1733443818357,4.08,235.13,235.0,24.0204]
[1733443818358,16.68371927,235.01,235.0,24.0204]
[1733443818563,4.08,235.02,235.0,24.0204]
[1733443818762,16.68371927,235.05,235.0,24.0204]
[1733443819359,4.08,235.07,235.0,24.0204]
[1733443819865,16.68371927,235.09,235.0,24.0204]
[1733443820166,16.68371927,235.09,235.03,2.1249]
[1733443820362,16.68371927,235.09,235.0,24.0204]
[1733443820763,16.68371927,235.09,235.01,2.1251]
[1733443821062,16.68371927,235.09,235.0,24.0204]
[1733443821271,4.08,235.1,235.03,2.1249]
[1733443821566,7.56602266,235.09,235.03,2.1249]
[1733443821763,4.08,235.1,235.01,7.8422]
[1733443821969,7.56613187,235.09,235.01,7.8422]
[1733443822267,7.56891566,235.08,235.01,7.8422]
[1733443822459,16.68371927,235.06,235.01,7.8422]
[1733443823067,20.76371927,235.1,235.01,7.8422]
[1733443823270,7.57155932,235.09,235.01,7.8422]
[1733443823469,7.57181123,235.08,235.01,7.8422]
[1733443823665,16.68371927,235.06,235.0,24.0204]
[1733443823969,16.68371927,235.02,235.0,24.0204]
[1733443824360,20.76371927,235.02,235.0,24.0204]
[1733443824559,17.9634032,235.01,235.0,4.87227779]
[1733443824763,20.0885032,235.01,235.0,4.87227779]
[1733443825370,12.51167209,235.01,235.0,4.87227779]
[1733443826362,10.38657209,235.01,235.0,4.87227779]
[1733443827770,4.1,235.04,235.0,4.87227779]
[1733443828168,16.68371927,235.06,235.04,2.1247]
[1733443828363,10.39466515,235.05,235.04,2.1247]
[1733443828572,16.68371927,235.1,235.08,2.1244]
[1733443828868,16.68371927,235.1,235.01,5.1909]
[1733443829063,10.40139303,235.09,235.01,5.1909]
[1733443829264,16.68371927,235.1,235.06,2.1246]
[1733443829565,16.68371927,235.1,235.01,5.1909]
[1733443829771,16.68371927,235.1,235.06,2.1246]
[1733443829970,16.68371927,235.1,235.01,7.8102]
[1733443831174,10.40623079,235.09,235.01,7.8102]
[1733443831373,16.68371927,235.14,235.07,2.1245]
[1733443831573,10.40695935,235.13,235.01,7.8102]
[1733443831770,10.40695935,235.12,235.01,7.8102]
[1733443831976,10.40695935,235.11,235.04,2.1248]
[1733443832274,20.78371927,235.14,235.01,7.8102]
[1733443832468,10.40247877,235.13,235.01,7.8102]
[1733443832870,16.68371927,235.14,235.01,7.8102]
[1733443834480,20.76371927,235.18,235.01,7.8102]
[1733443834673,10.40765251,235.17,235.09,2.1243]
[1733443834878,10.40765251,235.16,235.09,2.1243]
[1733443835080,20.76371927,235.18,235.09,2.1243]
[1733443835271,10.40732536,235.17,235.09,2.1243]
[1733443835472,10.40732536,235.16,235.11,2.1241]
[1733443835673,0.15677,235.2,235.02,4.08]
[1733443835876,10.40729323,235.19,235.07,2.1245]
[1733443836072,0.15677,235.2,235.03,16.68371927]
[1733443836672,0.15677,235.2,235.18,2.1235]
[1733443836977,16.68371927,235.26,235.11,4.08]
[1733443837173,10.40725944,235.25,235.12,2.7043]
[1733443837381,16.68371927,235.26,235.13,4.67500097]
[1733443837682,16.68371927,235.22,235.13,2.5585]
[1733443838078,16.68371927,235.18,235.13,2.5585]
[1733443838673,4.08,235.28,235.13,2.5585]
[1733443838674,16.68371927,235.22,235.13,2.5585]
[1733443839678,16.68371927,235.22,235.14,2.1239]
[1733443839874,16.68371927,235.22,235.13,2.5585]
[1733443840077,10.39289427,235.21,235.13,2.5585]
[1733443840377,16.68371927,235.22,235.14,2.1239]
[1733443840579,16.68371927,235.22,235.13,2.5585]
[1733443841083,16.68371927,235.22,235.15,2.1237]
[1733443841475,16.68371927,235.22,235.18,2.1235]
[1733443841783,16.68371927,235.22,235.13,2.5585]
[1733443842178,16.68371927,235.22,235.14,2.4814]
[1733443843073,18.78937512,235.32,235.14,2.4814]
[1733443843074,16.68371927,235.32,235.14,2.4814]
[1733443843283,10.38989093,235.31,235.14,2.4814]
[1733443843579,16.68371927,235.2,235.14,2.4814]
[1733443843785,16.68371927,235.16,235.14,2.4814]
[1733443843984,16.68371927,235.16,235.13,2.5585]
[1733443844580,16.68371927,235.16,235.01,9.3416]
[1733443844785,16.68371927,235.12,235.02,2.4972]
[1733443844984,16.68371927,235.12,235.01,5.2616]
[1733443845283,18.80781927,235.12,235.01,9.8839]
[1733443845685,16.68371927,235.12,235.01,7.7588]
[1733443845886,16.68371927,235.08,235.01,7.7588]
[1733443846185,16.68371927,235.04,235.0,4.87227779]
[1733443846380,16.68371927,235.08,235.0,4.87227779]
[1733443846782,7.24676315,235.07,235.0,4.87227779]
[1733443847086,7.24676315,235.06,235.0,4.87227779]
[1733443847386,16.68371927,235.04,235.0,4.87227779]
[1733443849484,16.68371927,235.08,235.02,2.1249]
[1733443849787,17.61784005,235.07,235.0,4.87227779]
[1733443849983,7.24408334,235.06,235.04,2.1248]
[1733443850191,16.68371927,235.12,235.01,5.1472]
[1733443850385,7.24216962,235.11,235.01,5.1472]
[1733443850587,16.68371927,235.12,235.04,2.1248]
[1733443850787,16.68371927,235.12,235.01,7.827]
[1733443851389,7.24173775,235.11,235.02,2.1249]
[1733443851691,16.68371927,235.08,235.01,7.827]
[1733443852289,16.68371927,235.08,235.01,9.952]
[1733443852486,16.68371927,235.08,235.01,2.125]
[1733443852790,16.68371927,235.08,235.0,4.87227779]
[1733443852993,7.23879196,235.07,235.0,4.87227779]
[1733443853186,16.68371927,235.08,235.0,6.99747779]
[1733443854082,16.68371927,235.08,235.0,4.87227779]
[1733443854390,17.60777446,235.07,235.0,4.87227779]
[1733443854592,16.68371927,235.08,235.0,4.87227779]
[1733443854782,7.24137187,235.07,235.0,4.87227779]
[1733443854986,16.68371927,235.08,235.0,4.87227779]
[1733443855187,7.24144945,235.07,235.0,4.87227779]
[1733443855391,16.68371927,235.08,235.0,4.87227779]
[1733443855692,7.23950771,235.07,235.0,4.87227779]
[1733443855892,16.68371927,235.08,235.0,4.87227779]
[1733443856192,7.23892327,235.07,235.0,4.87227779]
[1733443856492,16.68371927,235.08,235.02,2.125]
[1733443856693,7.23840339,235.07,235.0,4.87227779]
[1733443856993,16.68371927,235.04,235.0,4.87227779]
[1733443858389,7.24091095,235.03,235.0,4.71247779]
[1733443858696,16.68371927,235.04,235.0,4.71247779]
[1733443859393,2.125,235.02,235.0,4.71247779]
[1733443859594,16.68371927,235.04,235.0,4.71247779]
[1733443859788,17.60201384,235.03,235.0,4.71247779]
[1733443859992,2.1251,235.01,235.0,4.71247779]
[1733443860296,19.72711384,235.01,235.0,4.71247779]
[1733443860699,21.85064912,235.01,235.0,4.71247779]
[1733443861597,19.72711384,235.01,235.0,4.71247779]
[1733443861792,17.60201384,235.01,235.0,4.71247779]
[1733443862192,4.08,235.02,235.0,4.71247779]
[1733443863692,7.23411351,235.01,235.0,4.71247779]
[1733443863892,4.08,235.02,235.0,4.71247779]
[1733443864501,4.08,235.02,235.0,6.83767779]
[1733443864901,4.08,235.02,235.0,4.71247779]
[1733443867192,4.08,235.02,235.01,2.1251]
[1733443867394,4.08,235.02,235.0,4.71247779]
[1733443867794,6.205,235.02,235.0,4.71247779]
[1733443868001,4.08,235.02,235.0,4.71247779]
[1733443868499,2.1251,235.01,235.0,4.71247779]
[1733443869400,9.36214664,235.01,235.0,4.71247779]
[1733443870000,19.70930449,235.01,235.0,4.71247779]
[1733443871507,36.39302376,235.01,235.0,4.71247779]
[1733443871804,36.39302376,235.01,235.0,0.95589672]
[1733443872001,29.15597712,235.01,235.0,0.95589672]
[1733443872300,29.15597712,235.01,234.77,2.6854]
[1733443872301,290.0,235.0,234.77,2.6854]
[1733443872501,290.0,235.0,234.64,4.2567]
[1733443872502,16.68371927,234.85,234.74,5.4227]
[1733443872705,4.08,234.84,234.74,5.4227]
[1733443872906,16.68371927,234.81,234.65,2.5152]
[1733443873204,16.68371927,234.81,234.66,5.2244]
[1733443873607,16.68371927,234.77,234.66,5.2244]
[1733443873798,4.08,234.76,234.69,2.128]
[1733443873997,4.08,234.76,234.66,5.2244]
[1733443874306,4.08,234.76,234.69,2.128]
[1733443874698,4.08,234.76,234.66,5.2244]
[1733443874896,6.2074,234.76,234.67,2.1281]
[1733443875301,6.2074,234.76,234.6,5.0881]
[1733443875302,4.08,234.76,234.6,5.0881]